[Event "XII Cracow ICC-A 2024"]
[Site "Krakow"]
[Date "2024.06.27"]
[Round "7.6"]
[White "Kelires, Andreas"]
[Black "Mahitosh Dey"]
[Result "1/2-1/2"]
[ECO "C78"]
[WhiteElo "2515"]
[BlackElo "2232"]
[Annotator "TA"]
[PlyCount "73"]
[EventDate "2024.06.20"]
[EventType "swiss"]
[EventCountry "POL"]
[SourceTitle "playchess.com"]
[Source "ChessBase"]
[SourceQuality "1"]
[TimeControl "40/5400+30:1800+30"]

{[%evp 15,73,22,20,12,29,23,25,13,33,39,49,59,64,8,10,12,10,4,8,-665,0,-2,0,0,6,28,18,2,7,4,7,-62,0,0,0,-47,-50,-48,-46,-51,-14,-14,-13,-14,-9,-10,-8,-53,0,0,0,0,0,0,0,0,0,0,0,0]} 1. e4 {[%emt 0:00:05]} e5 {[%emt 0:02:07]} 2. Nf3 {[%emt 0:00:07]} Nc6 {[%emt 0:00:06]} 3. Bb5 {[%emt 0:00:05][%cal Bf1b5,Bb5a4,Ba4b3][%mdl 32]} a6 {[%emt 0:00:04]} 4. Ba4 {[%emt 0:00:05]} Nf6 {[%emt 0:00:04]} 5. O-O {[%emt 0:00:11]} b5 {[%emt 0:00:02]} 6. Bb3 {[%emt 0:00:05]} Bb7 {[%emt 0:00:04]} 7. Nc3 {[%emt 0:00:18]} Be7 {[%emt 0:09:23]} 8. d3 {[%emt 0:01:02]} d6 {[%emt 0:01:05]} 9. a3 {[%emt 0:00:45]} Qd7 {[%emt 0:02:25]} 10. Re1 {[%emt 0:01:38]} O-O {[%emt 0:13:29]} 11. Bd2 {[%emt 0:03:50] White has an edge.} Rae8 {[%emt 0:05:14]} 12. a4 {[%emt 0:05:52]} Nd8 {[%emt 0:00:05]} 13. axb5 {[%emt 0:06:31]} axb5 {[%emt 0:00:10]} 14. Ne2 {[%emt 0:26:20] White is more active.} (14. d4 $14) 14... Ne6 $11 {[%emt 0:05:10]} 15. Ng3 {[%emt 0:00:16]} Ra8 {[%emt 0:02:12]} 16. Qe2 {[%emt 0:19:08]} Rxa1 {[%emt 0:05:53]} 17. Rd1 $2 {[%mdl 8192] [#]} (17. Rxa1 $11 c5 18. h3) 17... Rb1 $2 ({Better is} 17... Rfa8 $19 18. Be3 c5) 18. Rxb1 {[%emt 0:00:35]} Rb8 19. Ra1 Ra8 {[%emt 0:01:02]} 20. Rxa8+ {[%emt 0:01:13]} Bxa8 {[%emt 0:00:05]} 21. Nf5 {[%emt 0:00:50]} Bf8 {[%emt 0:00:24]} 22. Ng5 {[%emt 0:09:20]} d5 {[%emt 0:02:59]} 23. Nf3 {[%emt 0:07:56]} (23. Nxe6 $11 Qxe6 24. Ne3) 23... Nf4 {[%emt 0:02:11]} (23... Nc5 $1 $15 24. Ng3 (24. Nxe5 Qe6 $17) 24... Nxb3 (24... dxe4 25. Nxe5 Qd6 26. Bxf7+ Kh8 27. Bc3 $16) 25. cxb3 Qe6) 24. Bxf4 {[%emt 0:01:32]} exf4 {[%emt 0:00:07]} 25. e5 {[%emt 0:07:16]} (25. N5d4 $11) 25... Qxf5 $15 {[%emt 0:01:25]} 26. exf6 {[%emt 0:00:01]} Qxf6 {[%emt 0:00:03]} 27. d4 {[%emt 0:00:12]} Bc6 {[%emt 0:03:04]} 28. Ne5 {[%emt 0:00:23]} Qe6 {[%emt 0:00:07] [#] And now ...f6 would win.} 29. Qd2 $1 {[%emt 0:00:53]} Be8 {[%emt 0:01:55] Black wants to play ...c5.} 30. Qxf4 {[%emt 0:00:09]} Bd6 {[%emt 0:00:05]} 31. h3 {[%emt 0:01:46]} f6 {[%emt 0:01:06]} (31... c5 $15 32. c3 b4) 32. Qg4 $11 {[%emt 0:00:40] The position is equal.} Bf7 {[%emt 0:03:29]} 33. Qxe6 {[%emt 0:01:17]} Bxe6 {[%emt 0:00:06]} 34. Nc6 {[%emt 0:01:47]} Kf7 {[%emt 0:00:25]} 35. Na7 {[%emt 0:01:12]} b4 {[%emt 0:00:06]} 36. Nb5 {[%emt 0:01:32]} Ke7 {[%emt 0:00:11]} 37. Nxd6 {[%emt 0:00:41] Weighted Error Value: White=0.31/Black=0.37.  Loses game:     	White=1     	---        Missed win:     	---       	Black=1      Mistake:       	White=3     	Black=2      Inaccurate:     	White=1     	Black=1      OK:         	White=16    	Black=10     Best:        	White=3     	Black=1      Strong:       	White=1     	---} 1/2-1/2

[Event "XII Cracow ICC-A 2024"]
[Site "Krakow"]
[Date "2024.06.27"]
[Round "7.7"]
[White "Keleberda, Tymur"]
[Black "Bogdanov, Egor"]
[Result "1/2-1/2"]
[ECO "B50"]
[WhiteElo "2223"]
[BlackElo "2433"]
[Annotator "RC"]
[PlyCount "114"]
[EventDate "2024.06.20"]
[EventType "swiss"]
[EventCountry "POL"]
[SourceTitle "playchess.com"]
[Source "ChessBase"]
[SourceQuality "1"]
[TimeControl "40/5400+30:1800+30"]

1. e4 {[%emt 0:00:04]} c5 {[%emt 0:02:04]} 2. Nf3 {[%emt 0:00:07]} d6 {[%emt 0:01:05]} 3. c3 {[%emt 0:00:31]} Nf6 {[%emt 0:00:13]} 4. h3 {[%emt 0:00:07]} Nc6 {[%emt 0:00:02]} 5. Bd3 {[%emt 0:00:06]} e5 {[%emt 0:00:10]} 6. Bc2 {[%emt 0:00:05]} d5 {[%emt 0:00:14]} 7. d3 {[%emt 0:00:52]} dxe4 {[%emt 0:03:07]} 8. dxe4 {[%emt 0:00:10]} Qxd1+ {[%emt 0:00:22]} 9. Kxd1 {[%emt 0:00:16]} h6 {[%emt 0:19:19]} 10. Be3 {[%emt 0:10:56]} Be6 {[%emt 0:01:32]} 11. Nbd2 {[%emt 0:00:51]} O-O-O {[%emt 0:00:35]} 12. Ke2 {[%emt 0:00:15]} Nh5 {[%emt 0:09:36]} 13. g3 {[%emt 0:04:02]} g5 {[%emt 0:02:31]} 14. Bb3 {[%emt 0:09:01]} Ng7 {[%emt 0:21:46]} 15. h4 {[%emt 0:00:40]} g4 {[%emt 0:01:10]} 16. Nh2 {[%emt 0:00:09]} h5 {[%emt 0:07:22]} 17. Bg5 {[%emt 0:00:41]} Be7 {[%emt 0:00:29]} 18. Bxe7 {[%emt 0:01:46]} Nxe7 {[%emt 0:00:02]} 19. Nc4 {[%emt 0:02:21]} Nc6 {[%emt 0:01:58]} 20. Rhd1 {[%emt 0:07:12]} Kc7 {[%emt 0:00:56]} 21. Ne3 {[%emt 0:00:08]} Ne7 {[%emt 0:01:56]} 22. Nhf1 {[%emt 0:02:25]} Bxb3 {[%emt 0:04:34]} 23. axb3 {[%emt 0:01:39]} a6 {[%emt 0:03:44]} 24. Nd2 {[%emt 0:05:24]} f6 {[%emt 0:02:25]} 25. Ndc4 {[%emt 0:01:27]} Rxd1 {[%emt 0:00:34]} 26. Rxd1 {[%emt 0:00:05]} b5 {[%emt 0:01:37]} 27. Nd2 {[%emt 0:01:24]} Ne8 {[%emt 0:03:08]} 28. Nc2 {[%emt 0:07:25]} Nd6 {[%emt 0:00:53]} 29. Ne1 {[%emt 0:00:09]} a5 {[%emt 0:01:34]} 30. Nd3 {[%emt 0:01:31]} Kc6 {[%emt 0:01:17]} 31. Ra1 {[%emt 0:01:51]} c4 {[%emt 0:01:14]} 32. Ne1 {[%emt 0:02:01]} Ra8 {[%emt 0:00:55]} 33. bxc4 {[%emt 0:00:14]} bxc4 {[%emt 0:00:36]} 34. Nc2 {[%emt 0:00:21]} Kc5 {[%emt 0:00:29]} 35. Ne3 {[%emt 0:00:51]} a4 {[%emt 0:01:21]} 36. f3 {[%emt 0:03:41]} gxf3+ {[%emt 0:03:43]} 37. Kxf3 {[%emt 0:00:05]} Kb5 {[%emt 0:00:41]} 38. g4 {[%emt 0:00:13]} hxg4+ {[%emt 0:00:12]} 39. Nxg4 {[%emt 0:00:06]} Rh8 {[%emt 0:00:40]} 40. Rh1 {[%emt 0:01:36]} a3 {[%emt 0:01:46]} 41. bxa3 {[%emt 0:30:23]} Ka4 {[%emt 0:30:13]} 42. Ke3 {[%emt 0:02:27]} Kxa3 {[%emt 0:00:00]} 43. Nxf6 {[%emt 0:00:00]} Kb2 {[%emt 0:00:00]} 44. h5 {[%emt 0:00:00]} Kxc3 {[%emt 0:00:00]} 45. Rh2 {[%emt 0:00:00]} Kb4 {[%emt 0:00:00]} 46. Nf3 {[%emt 0:00:00]} c3 {[%emt 0:00:00]} 47. Nxe5 {[%emt 0:00:00]} Kb3 {[%emt 0:00:00]} 48. Kd3 {[%emt 0:00:38]} Nc4 {[%emt 0:00:00]} 49. Nxc4 {[%emt 0:03:43]} Rd8+ {[%emt 0:00:00]} 50. Nd5 {[%emt 0:00:07]} Nxd5 {[%emt 0:00:00]} 51. Na5+ {[%emt 0:00:05]} Ka4 {[%emt 0:02:59]} 52. exd5 {[%emt 0:00:20]} Kxa5 {[%emt 0:02:19]} 53. Kxc3 {[%emt 0:00:05]} Kb6 {[%emt 0:00:05]} 54. Kd4 {[%emt 0:00:12]} Kc7 {[%emt 0:00:02]} 55. h6 {[%emt 0:00:11]} Kd6 {[%emt 0:00:57]} 56. h7 {[%emt 0:00:05]} Rh8 {[%emt 0:00:03]} 57. Rh3 {[%emt 0:00:03]} Rxh7 {[%emt 0:00:04]} 1/2-1/2

[Event "XII Cracow ICC-A 2024"]
[Site "Krakow"]
[Date "2024.06.27"]
[Round "7.8"]
[White "Sieciechowicz, Marcin"]
[Black "Gorkiewicz, Mateusz"]
[Result "1/2-1/2"]
[ECO "D20"]
[WhiteElo "2405"]
[BlackElo "2223"]
[Annotator "RC"]
[PlyCount "59"]
[EventDate "2024.06.20"]
[EventType "swiss"]
[EventCountry "POL"]
[SourceTitle "playchess.com"]
[Source "ChessBase"]
[SourceQuality "1"]
[TimeControl "40/5400+30:1800+30"]

1. d4 {[%emt 0:00:03]} d5 {[%emt 0:00:08]} 2. c4 {[%emt 0:00:06]} dxc4 {[%emt 0:00:09]} 3. e4 {[%emt 0:00:32]} e5 {[%emt 0:00:22]} 4. Nf3 {[%emt 0:00:16]} exd4 {[%emt 0:00:21]} 5. Bxc4 {[%emt 0:00:14]} Nc6 {[%emt 0:00:10]} 6. O-O {[%emt 0:01:01]} Be6 {[%emt 0:00:12]} 7. Nbd2 {[%emt 0:02:59]} Nf6 {[%emt 0:12:50]} 8. Bb5 {[%emt 0:10:57]} Bc5 {[%emt 0:06:09]} 9. e5 {[%emt 0:08:13]} Nd5 {[%emt 0:06:57]} 10. Nb3 {[%emt 0:04:46]} Bb6 {[%emt 0:02:34]} 11. Nbxd4 {[%emt 0:01:01]} Qd7 {[%emt 0:01:12]} 12. Qa4 {[%emt 0:06:35]} Bxd4 {[%emt 0:08:30]} 13. Nxd4 {[%emt 0:03:20]} Nb6 {[%emt 0:00:17]} 14. Qd1 {[%emt 0:06:24]} Bc4 {[%emt 0:06:56]} 15. Bxc4 {[%emt 0:04:16]} Nxc4 {[%emt 0:02:50]} 16. Nxc6 {[%emt 0:01:15]} Qxc6 {[%emt 0:00:15]} 17. b3 {[%emt 0:01:13]} Nb6 {[%emt 0:02:37]} 18. Ba3 {[%emt 0:05:16]} Qd7 {[%emt 0:01:56]} 19. Qc2 {[%emt 0:03:28]} O-O-O {[%emt 0:13:14]} 20. Rad1 {[%emt 0:02:00]} Qe6 {[%emt 0:04:03]} 21. Rxd8+ {[%emt 0:09:49]} Rxd8 {[%emt 0:00:23]} 22. Bd6 {[%emt 0:01:17]} Qd7 {[%emt 0:07:02]} 23. Rc1 {[%emt 0:03:15]} Na8 {[%emt 0:00:40]} 24. h3 {[%emt 0:03:06]} Kb8 {[%emt 0:00:29]} 25. Bb4 {[%emt 0:01:07]} g6 {[%emt 0:00:42]} 26. Ba5 {[%emt 0:03:19]} Nb6 {[%emt 0:01:44]} 27. Bxb6 axb6 {[%emt 0:00:13]} 28. a4 {[%emt 0:04:11]} c6 {[%emt 0:00:28]} 29. Qc4 {[%emt 0:01:31]} Qf5 {[%emt 0:10:02]} 30. Re1 {[%emt 0:06:24]} 1/2-1/2

[Event "XII Cracow ICC-A 2024"]
[Site "Krakow"]
[Date "2024.06.27"]
[Round "7.9"]
[White "Nurgaliyev, Sauat"]
[Black "Hollan, Martin"]
[Result "1-0"]
[ECO "B30"]
[WhiteElo "2321"]
[BlackElo "2373"]
[Annotator "RC"]
[PlyCount "73"]
[EventDate "2024.06.20"]
[EventType "swiss"]
[EventCountry "POL"]
[SourceTitle "playchess.com"]
[Source "ChessBase"]
[SourceQuality "1"]
[TimeControl "40/5400+30:1800+30"]

1. e4 {[%emt 0:00:29]} c5 {[%emt 0:00:06]} 2. Nf3 {[%emt 0:00:22]} Nc6 {[%emt 0:00:05]} 3. Bb5 {[%emt 0:00:17]} Nf6 {[%emt 0:00:08]} 4. Nc3 {[%emt 0:00:29]} Qc7 {[%emt 0:00:07]} 5. O-O {[%emt 0:00:15]} e6 {[%emt 0:00:51]} 6. Re1 {[%emt 0:01:28]} Nd4 {[%emt 0:01:33]} 7. e5 {[%emt 0:05:33]} a6 {[%emt 0:08:55]} 8. Bf1 {[%emt 0:04:30]} Ng8 {[%emt 0:00:53]} 9. d3 {[%emt 0:06:36]} Ne7 {[%emt 0:10:10]} 10. Ne4 {[%emt 0:09:39]} Nef5 {[%emt 0:13:45]} 11. c3 {[%emt 0:09:25]} Nxf3+ {[%emt 0:01:49]} 12. Qxf3 {[%emt 0:00:05]} Nh4 {[%emt 0:02:35]} 13. Qg3 {[%emt 0:04:15]} Nf5 {[%emt 0:01:03]} 14. Qf3 {[%emt 0:01:50]} Be7 {[%emt 0:05:46]} 15. Bf4 {[%emt 0:06:06]} h5 {[%emt 0:03:17]} 16. Rad1 {[%emt 0:02:22]} Nh4 {[%emt 0:01:19]} 17. Qe3 {[%emt 0:03:54]} b6 {[%emt 0:09:06]} 18. d4 {[%emt 0:04:28]} Nf5 {[%emt 0:02:27]} 19. Qh3 {[%emt 0:02:55]} Bb7 {[%emt 0:02:28]} 20. d5 {[%emt 0:01:26]} Qc8 {[%emt 0:02:31]} 21. Bg5 {[%emt 0:07:37]} Bxg5 {[%emt 0:03:05]} 22. Nxg5 {[%emt 0:00:04]} g6 {[%emt 0:03:43]} 23. c4 {[%emt 0:05:01]} Nd4 {[%emt 0:01:36]} 24. Ne4 {[%emt 0:00:20]} O-O {[%emt 0:00:32]} 25. Rd3 {[%emt 0:02:32]} Kg7 {[%emt 0:00:54]} 26. Nd6 {[%emt 0:06:48]} Qc7 {[%emt 0:01:14]} 27. Rg3 {[%emt 0:00:20]} Kh6 {[%emt 0:04:39]} 28. Bd3 {[%emt 0:01:37]} f5 {[%emt 0:00:08]} 29. exf6 {[%emt 0:00:43]} Rxf6 {[%emt 0:00:10]} 30. Qh4 {[%emt 0:02:15]} Kg7 {[%emt 0:00:08]} 31. Bxg6 {[%emt 0:01:25]} Qxd6 {[%emt 0:00:24]} 32. Bxh5+ {[%emt 0:00:15]} Qxg3 {[%emt 0:00:20]} 33. Qxg3+ {[%emt 0:00:07]} Kh6 {[%emt 0:00:04]} 34. Re4 {[%emt 0:03:12]} Nf5 {[%emt 0:00:37]} 35. Qh3 {[%emt 0:00:14]} Kg7 {[%emt 0:00:08]} 36. Rg4+ {[%emt 0:01:39]} Kf8 {[%emt 0:00:06]} 37. Bg6 {[%emt 0:00:17]} 1-0

[Event "XII Cracow ICC-A 2024"]
[Site "Krakow"]
[Date "2024.06.27"]
[Round "7.10"]
[White "Gierulski, Kamil"]
[Black "Citak, Selim"]
[Result "1/2-1/2"]
[ECO "B51"]
[WhiteElo "2242"]
[BlackElo "2345"]
[Annotator "RC"]
[PlyCount "47"]
[EventDate "2024.06.20"]
[EventType "swiss"]
[EventCountry "POL"]
[SourceTitle "playchess.com"]
[Source "ChessBase"]
[SourceQuality "1"]
[TimeControl "40/5400+30:1800+30"]

1. e4 {[%emt 0:00:02]} c5 {[%emt 0:00:35]} 2. Nf3 {[%emt 0:00:03]} d6 {[%emt 0:00:45]} 3. Bb5+ {[%emt 0:00:03]} Nd7 {[%emt 0:01:02]} 4. a4 {[%emt 0:00:04]} Ngf6 {[%emt 0:00:25]} 5. Nc3 {[%emt 0:00:03]} a6 {[%emt 0:00:52]} 6. Be2 {[%emt 0:00:03]} b6 {[%emt 0:00:10]} 7. d4 {[%emt 0:00:23]} cxd4 {[%emt 0:00:06]} 8. Qxd4 {[%emt 0:00:03]} Bb7 {[%emt 0:00:25]} 9. O-O {[%emt 0:00:12]} e6 {[%emt 0:00:43]} 10. Rd1 {[%emt 0:00:31]} Qc7 {[%emt 0:00:27]} 11. Be3 {[%emt 0:00:58]} Ng4 {[%emt 0:00:42]} 12. Bg5 {[%emt 0:01:32]} h6 {[%emt 0:00:16]} 13. Bh4 {[%emt 0:00:03]} Nge5 {[%emt 0:00:22]} 14. h3 {[%emt 0:00:44]} Be7 {[%emt 0:00:45]} 15. Bxe7 {[%emt 0:02:02]} Kxe7 {[%emt 0:00:07]} 16. Rd2 {[%emt 0:08:22]} Rhd8 {[%emt 0:12:10]} 17. Qe3 {[%emt 0:03:41]} Qc5 {[%emt 0:03:10]} 18. Nd4 {[%emt 0:00:46]} Rac8 {[%emt 0:02:45]} 19. Rad1 {[%emt 0:01:57]} Nf6 {[%emt 0:04:17]} 20. Qg3 {[%emt 0:17:37]} g5 {[%emt 0:01:38]} 21. Nb3 {[%emt 0:02:49]} Qc6 {[%emt 0:03:03]} 22. Nd4 {[%emt 0:01:56]} Qc5 {[%emt 0:03:59]} 23. Nb3 {[%emt 0:00:13]} Qc6 {[%emt 0:00:51]} 24. Nd4 {[%emt 0:00:43]} 1/2-1/2

[Event "XII Cracow ICC-A 2024"]
[Site "Krakow"]
[Date "2024.06.27"]
[Round "7.11"]
[White "Karolczuk, Iwo"]
[Black "Licznerski, Lukasz"]
[Result "1/2-1/2"]
[ECO "A46"]
[WhiteElo "2293"]
[BlackElo "2434"]
[Annotator "TA"]
[PlyCount "238"]
[EventDate "2024.06.20"]
[EventType "swiss"]
[EventCountry "POL"]
[SourceTitle "playchess.com"]
[Source "ChessBase"]
[SourceQuality "1"]
[TimeControl "40/5400+30:1800+30"]

{[%evp 14,238,20,16,42,26,44,18,34,33,22,23,23,8,20,0,12,-27,0,0,20,0,0,0,11,12,6,0,0,4,12,0,6,0,43,26,46,25,27,22,81,-12,-41,-44,0,0,15,0,0,0,0,0,0,-52,-80,-64,-44,-70,-54,-43,-47,-55,-56,-60,-2,-28,-30,-56,-56,-58,-58,-56,-56,-70,-58,-59,0,-70,-70,-70,-62,-62,-62,-62,-56,-62,-61,-61,-61,-70,-70,-70,-70,-70,-63,-70,-70,-70,-70,-70,-58,-58,-58,-70,-65,-70,-58,-58,-44,-70,-70,-70,-70,-77,-70,-77,-77,-77,-77,-77,-77,-77,0,0,0,0,0,0,0,0,0,-33,-33,-33,-32,-33,-33,-33,0,0,0,0,0,-32,0,-33,0,-33,-33,-33,-33,-33,-33,-33,-33,-33,-33,-33,0,-33,-32,-32,0,-33,0,0,0,-32,-32,-33,0,0,0,0,0,0,0,-33,0,0,0,0,0,0,0,0,0,0,0,0,0,0,0,0,0,0,0,0,0,0,0,0,0,0,0,0,0,0,0,0,0,0,0,0,0,0,0,0,0,0,0,0,0,0,0,0,0]} 1. d4 {[%emt 0:00:02]} Nf6 {[%emt 0:07:28]} 2. Bf4 {[%emt 0:00:11]} e6 {[%emt 0:00:49]} 3. Nf3 {[%emt 0:00:32]} c5 {[%emt 0:00:31]} 4. e3 {[%emt 0:00:14]} cxd4 {[%emt 0:00:11]} 5. exd4 {[%emt 0:00:26]} b6 {[%emt 0:00:03]} 6. Nbd2 {[%emt 0:02:09]} Bb7 {[%emt 0:00:07]} 7. Bd3 {[%emt 0:01:12]} Be7 {[%emt 0:00:03]} 8. h3 {[%emt 0:01:49]} a6 {[%emt 0:01:14]} 9. a4 {[%emt 0:03:18]} d6 {[%emt 0:01:09]} 10. O-O {[%emt 0:00:22]} O-O {[%emt 0:00:23]} 11. Re1 {[%emt 0:01:27]} Nbd7 {[%emt 0:00:35]} 12. c3 {[%emt 0:04:12]} Re8 {[%emt 0:00:30]} 13. Qc2 {[%emt 0:09:53]} h6 {[%emt 0:02:42]} 14. Rad1 {[%emt 0:00:47]} Qc7 {[%emt 0:00:25]} 15. Ne4 {[%emt 0:10:10]} Bc6 {[%emt 0:02:49]} 16. Nfd2 {[%emt 0:01:50]} Qb7 {[%emt 0:05:48]} 17. Nxf6+ {[%emt 0:22:49]} Nxf6 {[%emt 0:00:05]} 18. Ne4 {[%emt 0:05:05]} b5 {[%emt 0:11:59]} 19. axb5 {[%emt 0:06:07]} (19. Bxd6 Nxe4 20. Bxe7 Nxf2 21. Qxf2 Rxe7 $16) (19. Nxd6 {keeps more tension.} Bxd6 20. Bxd6 Bxg2 21. Kh2) 19... axb5 {[%emt 0:00:27]} (19... Bxe4 20. Bxe4 Nxe4 21. bxa6 Rxa6 22. Rxe4 $18 (22. Qxe4 Qxb2 23. c4 Qa2 $11)) 20. Nxd6 {[%emt 0:01:36]} (20. Bxd6 {simplifies} Bxe4 21. Bxe4 Nxe4 22. Bxe7 Nxf2 23. Qxf2 Rxe7 24. Re5) 20... Bxd6 {[%emt 0:00:11]} 21. Bxd6 {[%emt 0:00:04]} Bxg2 {[%emt 0:00:31]} 22. Kh2 {[%emt 0:02:16]} Bf3 {[%emt 0:05:22][%cal Oa8d8]} 23. Rb1 {[%emt 0:01:18]} Kh8 {[%emt 0:01:59]} 24. Be5 {[%emt 0:02:20] [#] aiming for Rg1. This pair of bishops is nice.} Nd7 {[%emt 0:01:15]} 25. Bf4 {[%emt 0:01:53]} Qd5 {[%emt 0:15:03]} 26. Re3 {[%emt 0:00:57][%cal Od3b5]} Qh5 {[%emt 0:00:36]} (26... b4 $11 {remains equal.}) 27. Be2 {[%emt 0:08:30]} (27. Bxb5 $1 $16 Nf6 28. Rg1 (28. Bxe8 Ng4+ 29. Kg3 Nxe3 $11)) 27... Bxe2 $11 {[%emt 0:01:02]} 28. Rxe2 {[%emt 0:00:38]} (28. Qxe2 $2 Qf5 29. Re4 Nf6 $19) 28... Ra6 {[%emt 0:03:46]} 29. Rg1 {[%emt 0:03:10]} Rea8 {[%emt 0:01:46]} 30. Qd3 {[%emt 0:02:21]} Ra1 {[%emt 0:02:04]} 31. Bc1 {[%emt 0:00:22]} Qh4 {[%emt 0:05:44][%cal Oa1c1] [#] ...Rxc1! would now be deadly.} 32. Qf3 {[%emt 0:00:34]} Qf6 {[%emt 0:01:31]} 33. Qxf6 {[%emt 0:02:13]} (33. Re3 $11) 33... Nxf6 $15 {[%emt 0:00:02]} 34. b3 {[%emt 0:01:31]} Rc8 {[%emt 0:06:55]} 35. Bb2 {[%emt 0:00:47]} Ra7 {[%emt 0:00:54]} 36. c4 {[%emt 0:01:27]} bxc4 {[%emt 0:00:41]} 37. bxc4 {[%emt 0:00:04]} Rxc4 {[%emt 0:04:01] White must now prevent ...Nd5.} 38. d5 $1 {[%emt 0:00:04]} Rf4 {[%emt 0:10:34]} ({Of course not} 38... exd5 39. Bxf6 gxf6 40. Re8+ Kh7 41. Reg8 $11) ({But not} 38... Nxd5 39. Rxg7 Rb4 40. Be5 $11 (40. Rxf7+ $2 {perishes.} Rxb2 41. Rxb2 Rxf7 $19)) ({Black should play} 38... Ra2 $1 $15 39. dxe6 fxe6) 39. dxe6 {[%emt 0:01:45]} fxe6 {[%emt 0:00:02]} 40. Bxf6 {[%emt 0:00:43]} Rxf6 $11 {[%emt 0:01:16][%mdl 4096] Endgame. KRR-KRR} 41. Rg4 {[%emt 0:30:25]} Kg8 {[%emt 0:30:15]} 42. Rge4 {[%emt 0:01:01]} Kf7 {[%emt 0:00:06]} 43. Rg4 {[%emt 0:01:32]} Rf5 {[%emt 0:00:15]} 44. Rge4 {[%emt 0:00:29]} Rf6 {[%emt 0:00:02]} 45. Rg4 $1 {[%emt 0:00:12]} Ra3 {[%emt 0:00:30]} 46. Rg3 {[%emt 0:00:36]} Ra5 {[%emt 0:00:02]} 47. Rb2 {[%emt 0:00:31]} Ra7 {[%emt 0:01:17] Against Rb7+} 48. Re2 {[%emt 0:00:08]} Rb7 {[%emt 0:00:23]} 49. Rg4 {[%emt 0:00:19]} Rf5 {[%emt 0:00:22]} 50. Rge4 {[%emt 0:00:10]} Rb6 {[%emt 0:00:01]} 51. Rg4 {[%emt 0:00:28]} Kf6 {[%emt 0:00:18]} 52. Rg3 {[%emt 0:01:41]} Rf4 {[%emt 0:01:42]} 53. Rge3 {[%emt 0:00:00]} Ra6 {[%emt 0:00:00]} 54. Kg2 {[%emt 0:00:00]} Rd6 {[%emt 0:00:00]} 55. Kh2 {[%emt 0:00:00]} Kf7 {[%emt 0:00:00]} 56. Ra3 {[%emt 0:00:00]} Rd7 {[%emt 0:00:00]} 57. Rae3 {[%emt 0:00:00]} Rf6 {[%emt 0:00:00]} 58. Rg3 {[%emt 0:00:00]} Rd5 {[%emt 0:00:00]} 59. Kg2 {[%emt 0:00:00]} Rdf5 {[%emt 0:00:00]} 60. Rb2 {[%emt 0:00:00]} Rg6 {[%emt 0:00:00]} 61. Rxg6 {[%emt 0:00:00]} Kxg6 $15 {[%emt 0:00:00] KR-KR} 62. Rb6 {[%emt 0:00:00]} Kf6 {[%emt 0:00:00]} 63. Ra6 {[%emt 0:00:00]} Rf4 {[%emt 0:00:00]} 64. Kg3 {[%emt 0:00:00]} g5 {[%emt 0:00:00]} 65. Ra8 {[%emt 0:00:00]} h5 {[%emt 0:00:00]} 66. Rh8 {[%emt 0:00:00]} h4+ {[%emt 0:00:00]} 67. Kg2 {[%emt 0:00:00]} e5 {[%emt 0:00:00]} (67... Rf5 $17) 68. Rf8+ {[%emt 0:00:00]} Ke6 {[%emt 0:00:00]} 69. Re8+ {[%emt 0:00:00]} Kf5 {[%emt 0:00:00]} 70. Rf8+ {[%emt 0:00:00]} Ke4 {[%emt 0:00:00]} 71. Rg8 {[%emt 0:00:00]} Rf5 {[%emt 0:00:00]} 72. Rg7 {[%emt 0:00:00]} Kf4 {[%emt 0:00:00]} 73. Rg8 {[%emt 0:00:00]} Rf6 {[%emt 0:00:00]} 74. Rg7 {[%emt 0:00:00]} Kf5 {[%emt 0:00:00]} 75. Rg8 {[%emt 0:00:00]} Rg6 {[%emt 0:00:00]} 76. Rf8+ {[%emt 0:00:00]} Ke4 {[%emt 0:00:00]} 77. Rh8 {[%emt 0:00:00]} Rg7 {[%emt 0:00:00]} 78. Rh6 {[%emt 0:00:00]} Rg8 {[%emt 0:00:00]} 79. Rh7 {[%emt 0:00:00]} Kf5 {[%emt 0:00:00]} 80. Rf7+ {[%emt 0:00:00]} Ke6 {[%emt 0:00:00]} 81. Rh7 {[%emt 0:00:00]} Ra8 {[%emt 0:00:00]} 82. Rh6+ {[%emt 0:00:00]} Kf5 {[%emt 0:00:00]} 83. Rh7 {[%emt 0:00:00]} Kg6 {[%emt 0:00:00]} 84. Re7 {[%emt 0:00:00]} Kf6 {[%emt 0:00:00]} 85. Rh7 {[%emt 0:00:00]} Ra5 {[%emt 0:00:00]} 86. Rh6+ {[%emt 0:00:00]} Kg7 {[%emt 0:00:00]} 87. Rb6 $1 {[%emt 0:00:00]} Ra4 {[%emt 0:00:00]} 88. Re6 {[%emt 0:00:00]} Re4 {[%emt 0:00:00]} 89. Kf3 {[%emt 0:00:00]} Kf7 {[%emt 0:00:00]} 90. Rh6 {[%emt 0:00:00]} Rf4+ {[%emt 0:00:00]} 91. Kg2 {[%emt 0:00:00]} Kg7 {[%emt 0:00:00]} 92. Re6 {[%emt 0:00:00]} Re4 {[%emt 0:00:00]} 93. Kf3 {[%emt 0:00:00]} Kf7 {[%emt 0:00:00] ( -> ...Rf4+)} 94. Rh6 {[%emt 0:00:00]} Rf4+ {[%emt 0:00:00]} 95. Kg2 {[%emt 0:00:00]} Kg7 {[%emt 0:00:00]} 96. Re6 {[%emt 0:00:00] The position is equal.} e4 {[%emt 0:00:00]} 97. Re5 {[%emt 0:00:28]} Kf6 {[%emt 0:00:00]} 98. Re8 {[%emt 0:00:07]} g4 {[%emt 0:00:00]} 99. hxg4 {[%emt 0:03:48]} Rxg4+ {[%emt 0:00:00]} 100. Kh3 {[%emt 0:00:27]} Rf4 {[%emt 0:00:00]} 101. Kg2 {[%emt 0:01:04]} Kf5 {[%emt 0:00:00]} 102. Kh3 {[%emt 0:02:18]} Kg5 {[%emt 0:00:00]} 103. Rg8+ {[%emt 0:02:45]} Kf5 {[%emt 0:00:00]} 104. Re8 {[%emt 0:00:23]} Kf6 {[%emt 0:00:00]} 105. Kg2 {[%emt 0:00:23]} Kg6 {[%emt 0:00:00]} 106. Kh3 {[%emt 0:00:50]} Kg7 {[%emt 0:00:00]} 107. Re7+ {[%emt 0:00:23]} Kf6 {[%emt 0:00:00]} 108. Re8 {[%emt 0:00:09]} Kg5 {[%emt 0:00:00]} 109. Rg8+ {[%emt 0:00:55]} Kf5 {[%emt 0:00:00]} 110. Re8 $1 {[%emt 0:00:07]} e3 {[%emt 0:00:00]} 111. fxe3 {[%emt 0:01:10]} Re4 {[%emt 0:00:00]} 112. Rf8+ {[%emt 0:00:29]} Ke5 {[%emt 0:00:00]} 113. Re8+ {[%emt 0:00:14]} Kd5 {[%emt 0:00:00]} 114. Rd8+ {[%emt 0:00:11]} Kc4 {[%emt 0:00:00]} 115. Rd7 {[%emt 0:00:21]} Rxe3+ {[%emt 0:00:00]} 116. Kxh4 {[%emt 0:00:07]} Rd3 {[%emt 0:00:00]} 117. Rc7+ {[%emt 0:00:07]} Kd5 {[%emt 0:00:00]} 118. Rd7+ {[%emt 0:00:15]} Kc4 {[%emt 0:00:00]} 119. Rxd3 {[%emt 0:00:02]} Kxd3 {[%emt 0:00:00] Weighted Error Value: White=0.11 (very precise) /Black=0.12 (very precise) .  Mistake:       	White=2     	Black=3      Inaccurate:     	White=12    	Black=11     OK:         	White=40    	Black=33     Best:        	White=3     	Black=5      Strong:       	White=4     	---} 1/2-1/2